bitfinex-derivatives/quotes_ETHF0:USTF0_20250627
["timestamp","ask_amount","ask_price","bid_price","bid_amount"]
[1751011407627,3.2078,2443.0,2442.9,0.40916]
[1751011407821,3.61695,2443.0,2442.7,0.40919]
[1751011408126,2.0114,2442.9,2442.8,0.40918]
[1751011412531,2.0114,2442.9,2442.7,3.35798346]
[1751011415133,1.2364,2442.8,2442.7,3.35798346]
[1751011418937,1.2364,2442.8,2442.4,5.2775]
[1751011419140,3.2078,2442.7,2442.6,2.94879346]
[1751011419440,3.2078,2442.7,2442.5,0.40922]
[1751011419625,1.4153,2442.6,2442.5,0.40923]
[1751011419831,1.4153,2442.6,2442.4,0.40924]
[1751011420440,1.82452,2442.6,2442.4,0.40924]
[1751011420839,1.4153,2442.6,2442.4,0.40924]
[1751011421139,0.40924,2442.5,2442.3,0.40926]
[1751011421343,5.2435,2442.4,2442.3,0.40926]
[1751011421543,5.9015,2442.4,2442.3,0.40926]
[1751011422544,4.556,2442.4,2442.3,0.40926]
[1751011422741,4.556,2442.4,2442.3,1.06966]
[1751011424348,3.2078,2442.4,2442.3,1.06966]
[1751011425350,0.6765,2442.6,2442.5,0.40923]
[1751011425541,0.6765,2442.6,2442.5,3.35802346]
[1751011427950,3.2078,2442.7,2442.6,0.40921]
[1751011429152,5.2181,2442.7,2442.6,0.40921]
[1751011430051,5.7857,2442.7,2442.6,0.40921]
[1751011430657,5.7857,2442.7,2442.6,3.35800346]
[1751011431947,2.5779,2442.7,2442.6,3.35800346]
[1751011434956,4.342,2442.7,2442.6,4.77560346]
[1751011435861,4.342,2442.7,2442.6,7.22045744]
[1751011436347,3.2078,2443.2,2442.7,1.02298]
[1751011436548,3.2078,2443.2,2443.1,0.40913]
[1751011437052,3.2078,2443.2,2443.1,1.07993]
[1751011440855,3.2078,2443.2,2443.1,0.40913]
[1751011445257,2.9481,2443.4,2443.0,9.10538692]
[1751011445459,2.9481,2443.4,2443.3,3.35789346]
[1751011445654,2.9481,2443.4,2443.3,6.56569346]
[1751011445859,2.4239362,2444.2,2443.5,2.94879346]
[1751011446159,3.2078,2444.0,2443.9,3.35779346]
[1751011446549,4.15796906,2444.0,2443.9,3.35779346]
[1751011447160,0.95016906,2444.0,2443.9,3.35779346]
[1751011447757,4.15796906,2444.0,2443.5,0.7226]
[1751011447950,0.95016906,2443.9,2443.6,0.723]
[1751011448155,1.35918906,2443.8,2443.4,2.94879346]
[1751011448358,6.16996906,2443.7,2443.4,0.40906]
[1751011448556,2.35026906,2443.6,2443.5,0.40906]
[1751011448858,2.35026906,2443.6,2443.4,3.35786346]
[1751011449058,0.94936019,2443.5,2443.4,3.35786346]
[1751011449256,1.4001,2443.5,2443.4,3.35786346]
[1751011451263,3.876,2443.7,2443.6,0.40905]
[1751011451463,3.876,2443.7,2443.6,3.35784346]
[1751011452965,3.2078,2443.7,2443.6,3.35784346]
[1751011454454,0.71,2443.8,2443.7,0.40903]
[1751011454655,2.1303,2443.8,2443.7,0.40903]
[1751011457163,0.71,2443.8,2443.7,0.40903]
[1751011459664,0.7007,2443.9,2443.8,0.40901]
[1751011459869,0.7007,2443.9,2443.8,3.35780346]
[1751011460168,1.3491,2443.9,2443.8,3.35780346]
[1751011462666,0.40902,2443.8,2443.3,6.08924939]
[1751011462972,3.2078,2443.5,2443.4,0.40908]
[1751011463663,3.2078,2443.5,2443.1,0.40913]
[1751011463664,0.40909,2443.4,2443.1,0.40913]
[1751011463964,3.2078,2443.2,2443.0,0.40914]
[1751011464166,1.366,2443.1,2442.9,2.44915593]
[1751011464470,1.366,2443.1,2443.0,0.40915]
[1751011464471,2.038,2443.1,2443.0,0.40915]
[1751011465467,2.038,2443.1,2442.9,0.40916]
[1751011466967,2.44713,2443.1,2442.7,1.06919]
[1751011467173,3.2078,2442.9,2442.7,0.66]
[1751011467473,3.2078,2442.9,2442.7,1.06919]
[1751011468976,3.61698,2442.9,2442.6,8.52059543]
[1751011469176,2.0488,2442.8,2442.6,8.52059543]
[1751011469372,2.0488,2442.8,2442.7,0.4092]
[1751011469674,2.45799,2442.8,2442.5,2.85837593]
[1751011469978,3.2078,2442.6,2442.5,0.40922]
[1751011470971,3.2078,2442.6,2442.4,3.52239593]
[1751011471173,3.2078,2442.6,2442.5,0.40923]
[1751011471570,3.2078,2442.6,2442.4,1.07324]
[1751011471983,4.5983,2442.6,2442.3,2.85840593]
[1751011472286,4.5983,2442.6,2442.4,0.40925]
[1751011472583,0.6785,2442.8,2442.7,0.4092]
[1751011472876,0.6785,2442.8,2442.7,6.0714295]
[1751011473180,3.2078,2442.9,2442.8,0.40918]
[1751011478782,2.58943,2443.1,2442.9,0.40916]
[1751011479081,4.5223,2443.0,2442.9,0.40916]
[1751011483385,3.2078,2443.0,2442.9,0.40916]
[1751011484286,3.9093,2443.0,2442.9,0.40916]
[1751011485886,4.31845,2443.0,2442.9,0.40917]
[1751011486082,3.9093,2443.0,2442.9,0.40917]
[1751011486286,5.2706,2443.0,2442.9,0.40917]
[1751011488983,2.0628,2443.0,2442.9,0.40917]
[1751011489192,5.2706,2443.0,2442.9,0.40917]
[1751011489892,3.9093,2443.0,2442.9,0.40917]
[1751011490293,4.31845,2443.0,2442.9,0.40917]
[1751011490487,4.31845,2443.0,2442.8,2.94837953]
[1751011490889,5.02015,2443.0,2442.9,0.40917]
[1751011492393,6.46055,2443.0,2442.9,0.40917]
[1751011492890,6.46055,2443.0,2442.8,3.35754953]
[1751011493087,0.40919,2442.8,2442.7,0.40919]
[1751011493299,4.38877953,2442.9,2442.5,2.44915593]
[1751011493490,3.2078,2442.6,2442.5,2.85838593]
[1751011494793,3.2078,2442.6,2442.5,2.44915593]
[1751011494996,3.61702,2442.6,2442.4,2.44915593]
[1751011495295,3.18423,2442.5,2442.4,2.45329496]
[1751011495696,2.775,2442.5,2442.4,0.40925]
[1751011495904,2.775,2442.5,2442.4,2.86252574]
[1751011497192,2.775,2442.5,2442.4,2.45327574]
[1751011498098,3.18423,2442.5,2442.4,2.45327574]
[1751011499800,6.13260953,2442.5,2442.4,2.45327574]
[1751011500100,6.13260953,2442.5,2442.1,3.25810525]
[1751011500101,2.775,2442.5,2442.3,5.40165527]
[1751011500294,3.18423,2442.5,2442.4,2.45327574]
[1751011500494,3.2078,2442.6,2442.5,0.40923]
[1751011500692,3.2078,2442.6,2442.5,3.35760953]
[1751011500889,3.2078,2442.6,2442.5,4.74160953]
[1751011503398,0.7098,2442.9,2442.8,0.40918]
[1751011503603,0.95159137,2442.9,2442.8,3.35755953]
[1751011503804,0.7017,2443.0,2442.9,0.40917]
[1751011504101,1.65325381,2443.0,2442.9,1.09607]
[1751011504305,0.7017,2443.0,2442.9,8.18457]
[1751011504506,0.7017,2443.0,2442.9,3.18457]
[1751011506501,3.9095,2443.0,2442.9,1.11077]
[1751011507293,3.9095,2443.0,2442.9,4.05914953]
[1751011509302,0.7017,2443.0,2442.9,6.51242527]
[1751011509607,0.7017,2443.0,2442.9,4.05914953]
[1751011511008,3.9095,2443.0,2442.9,6.5097395]
[1751011511511,3.9095,2443.0,2442.9,5.8081395]
[1751011512108,3.9095,2443.0,2442.9,0.40917]
[1751011512304,3.9095,2443.0,2442.9,3.35754953]
[1751011513505,3.9095,2443.0,2442.9,4.68264953]
[1751011513903,0.7017,2443.0,2442.9,4.68264953]
[1751011516610,0.7017,2443.0,2442.9,7.13077431]
[1751011516808,0.7017,2443.0,2442.9,5.80567431]
[1751011517113,0.7017,2443.0,2442.9,3.35754953]
[1751011517412,3.9095,2443.0,2442.9,3.35754953]
[1751011520714,3.9095,2443.0,2442.8,2.44812478]
[1751011521018,5.3002,2443.0,2442.8,2.44812478]
[1751011521213,6.0077,2443.0,2442.8,2.85730478]
[1751011522015,6.0077,2443.0,2442.9,0.40917]
[1751011522814,6.41686,2443.0,2442.8,2.85729478]
[1751011523007,6.0077,2443.0,2442.8,2.44812478]
[1751011523208,6.0077,2443.0,2442.8,2.85730478]
[1751011523209,6.41686,2443.0,2442.8,2.85730478]
[1751011523413,6.41686,2443.0,2442.8,0.40918]
[1751011523711,6.41686,2443.0,2442.9,0.40917]
[1751011524011,6.41686,2443.0,2442.8,0.40917]
[1751011524809,6.41686,2443.0,2442.9,0.40917]
[1751011525419,6.0077,2443.0,2442.8,2.94837953]
[1751011525615,6.0077,2443.0,2442.9,0.40917]
[1751011527523,6.41685,2443.0,2442.9,0.40917]
[1751011527725,6.0077,2443.0,2442.9,0.40917]
[1751011529126,6.41685,2443.0,2442.8,3.35754953]
[1751011529322,1.4477,2442.9,2442.8,3.35754953]
[1751011532225,1.4477,2442.9,2442.7,2.44812478]
[1751011532428,0.40918,2442.8,2442.7,2.44812478]
[1751011533332,0.4092,2442.7,2442.6,2.44812478]
[1751011533530,5.3557,2442.7,2442.5,2.44812478]
[1751011533828,0.40922,2442.6,2442.5,2.44812478]
[1751011534128,1.83222,2442.6,2442.4,0.40925]
[1751011534427,1.423,2442.6,2442.5,5.8093]
[1751011535130,1.83222,2442.6,2442.5,5.8093]
[1751011535428,1.83222,2442.6,2442.5,5.40007]
[1751011535730,1.423,2442.6,2442.5,5.8093]
[1751011535922,1.423,2442.6,2442.5,3.35760953]
[1751011537030,1.83222,2442.6,2442.5,3.35760953]
[1751011537224,6.423,2442.6,2442.3,2.45169047]
[1751011537425,3.2078,2442.4,2442.2,2.85997158]
[1751011537723,3.2078,2442.4,2442.2,2.45069158]
[1751011537724,1.4586,2442.3,2442.2,2.45069158]
[1751011537922,2.1444,2442.3,2442.2,5.80835111]
[1751011540537,2.55367,2442.3,2442.1,2.85998158]
[1751011540838,1.4332,2442.2,2442.1,0.40929]
[1751011541738,1.84248,2442.2,2442.0,3.35768953]
[1751011541930,3.2078,2442.1,2442.0,3.35768953]
[1751011544626,0.40933,2441.9,2441.8,2.45069158]
[1751011544834,2.1607,2442.0,2441.2,3.92570525]
[1751011545035,2.1284,2441.8,2441.6,2.94837953]
[1751011545240,3.2078,2441.7,2441.6,2.94837953]
[1751011545632,3.2078,2441.7,2441.4,3.35778953]
[1751011546141,3.2078,2441.7,2441.4,2.94837953]
[1751011546439,4.98368,2441.7,2441.4,2.94837953]
[1751011547033,4.5743,2441.7,2441.2,0.40944]
[1751011547337,3.2078,2441.3,2441.2,4.03591953]
[1751011548137,3.2078,2441.3,2441.2,1.08754]
[1751011548436,3.2078,2441.3,2441.2,4.03591953]
[1751011549541,1.02301,2442.7,2441.2,4.03591953]
[1751011549542,3.2078,2441.9,2441.8,0.40935]
[1751011549742,3.2078,2441.9,2441.8,3.35772953]
[1751011552439,3.2078,2441.9,2441.7,0.40937]
[1751011552737,0.6572,2441.8,2441.7,0.40937]
[1751011553735,3.2078,2441.9,2441.8,0.40935]
[1751011553944,3.2078,2441.9,2441.8,3.35772953]
[1751011554334,3.2078,2441.9,2441.8,6.07374775]
[1751011562044,4.5756,2442.2,2442.1,0.4093]
[1751011562552,4.5756,2442.2,2442.1,6.07369775]
[1751011562752,3.2078,2442.2,2442.1,6.07369775]
[1751011562949,3.9102,2442.6,2442.1,5.66439775]
[1751011563250,3.9102,2442.6,2442.5,6.07362775]
[1751011563452,3.2078,2442.6,2442.5,6.07362775]
[1751011563654,3.61702,2442.6,2442.3,5.66439775]
[1751011563853,1.08014,2442.5,2442.0,6.32429775]
[1751011564050,3.2078,2442.2,2442.1,0.40929]
[1751011565048,3.2078,2442.2,2442.1,0.4093]
[1751011566260,3.9104,2442.2,2442.0,6.32429775]
[1751011566552,0.6598,2442.1,2442.0,6.73360775]
[1751011566752,0.6598,2442.1,2442.0,6.07370775]
[1751011568656,3.9104,2442.2,2442.1,0.4093]
[1751011575854,3.9104,2442.2,2442.1,1.7813]
[1751011577755,3.9104,2442.2,2442.1,0.4093]
[1751011578456,3.9104,2442.2,2442.0,6.07370775]
[1751011578762,3.9104,2442.2,2442.1,0.4093]
[1751011579261,4.6113,2442.2,2442.1,0.4093]
[1751011580260,4.6113,2442.2,2442.0,6.07370775]
[1751011580470,4.6113,2442.2,2441.9,2.44559817]
[1751011580652,0.40932,2442.0,2441.9,2.44559817]
[1751011580853,0.40933,2441.9,2441.8,2.44559817]
[1751011581052,0.40935,2441.8,2441.7,2.44559817]
[1751011581249,1.13525,2441.8,2441.7,2.44559817]
[1751011581455,0.40938,2441.6,2441.5,3.25810525]
[1751011581659,3.61718,2441.6,2441.5,3.25810525]
[1751011581969,3.2078,2441.6,2441.5,3.66750525]
[1751011583167,3.2078,2441.6,2441.5,0.4094]
[1751011584562,3.2078,2441.6,2441.5,1.1372]
[1751011584762,3.2078,2441.6,2441.4,0.40941]
[1751011584962,3.2078,2441.6,2441.5,0.4094]
[1751011588266,3.2078,2441.6,2441.3,3.99900614]
[1751011588462,3.2078,2441.6,2441.3,0.7278]
[1751011588668,1.4498,2441.5,2441.1,3.96210614]
[1751011588973,0.40947,2441.1,2441.0,3.27120614]
[1751011589269,0.40947,2441.1,2440.8,1.10042]
[1751011589469,3.2078,2440.9,2440.5,3.27120614]
[1751011589772,3.2078,2440.6,2440.0,3.27120614]
[1751011589962,3.2078,2440.1,2439.6,5.66439775]
[1751011590158,3.2078,2439.8,2439.7,0.40969]
[1751011591166,3.2078,2440.1,2439.6,5.66439775]
[1751011591470,3.2078,2440.1,2440.0,6.07404775]
[1751011592671,3.2078,2440.4,2440.3,0.4096]
[1751011592973,3.2078,2440.4,2440.3,6.07399775]
[1751011593468,0.7033,2440.4,2440.3,6.07399775]
[1751011598290,0.7033,2440.4,2440.3,0.4096]
[1751011601180,2.1079,2440.4,2440.3,0.4096]
[1751011601678,5.3157,2440.4,2440.3,0.4096]
[1751011603783,5.3157,2440.4,2440.3,6.07399775]
[1751011604078,3.9111,2440.4,2440.3,6.07399775]
[1751011604278,3.9111,2440.4,2440.3,0.4096]
[1751011604674,5.3191,2440.4,2440.3,0.4096]
[1751011607784,0.7033,2440.4,2440.3,0.4096]
[1751011608182,0.7033,2440.4,2440.3,1.8105]
[1751011609481,0.7033,2440.4,2440.3,0.4096]
[1751011611587,0.7033,2440.4,2440.3,0.40961]
[1751011611889,0.7033,2440.4,2440.3,6.07400775]
[1751011614584,3.2078,2441.2,2440.5,1.02393]
[1751011614786,0.7101,2441.1,2441.0,6.07388775]
[1751011616384,3.2078,2441.2,2441.1,0.40947]
[1751011616590,0.7238,2441.6,2441.5,0.4094]
[1751011616793,0.7238,2441.6,2441.5,6.07379775]
[1751011616995,1.7041488,2441.6,2441.5,6.07379775]
[1751011617986,0.9803488,2441.6,2441.5,6.07379775]
[1751011618188,0.98163531,2441.7,2441.6,0.40939]
[1751011619190,0.98163531,2441.7,2441.5,5.66439775]
[1751011619393,3.09463531,2441.6,2441.5,6.07379775]
[1751011620589,3.09463531,2441.6,2441.4,0.40941]
[1751011620787,0.98163531,2441.5,2441.4,0.40941]
[1751011620993,2.39393531,2441.5,2441.4,0.40941]
[1751011622201,0.98163531,2441.5,2441.4,0.40941]
[1751011622801,0.7007,2441.6,2441.5,0.4094]
[1751011622993,0.7007,2441.6,2441.5,6.07379775]
[1751011624893,0.7007,2441.6,2441.4,0.6658]
[1751011625096,0.7007,2441.6,2441.3,0.40943]
[1751011625296,1.401,2441.5,2441.3,0.40943]
[1751011625597,1.401,2441.5,2441.2,3.61725]
[1751011625999,0.6922,2441.4,2441.2,3.61725]
[1751011626902,3.9,2441.4,2441.1,5.66439775]
[1751011627106,1.401,2441.3,2441.0,1.10248]
[1751011627295,1.81044,2441.3,2441.0,0.693]
[1751011627493,0.692,2441.2,2440.9,0.4095]
[1751011627693,1.401,2441.1,2441.0,0.40949]
[1751011629006,1.401,2441.1,2440.9,0.4095]
[1751011629305,1.401,2441.1,2440.8,3.2078]
[1751011629705,1.401,2441.1,2441.0,0.40949]
[1751011631402,1.401,2441.1,2441.0,6.07388775]
[1751011631604,1.401,2441.1,2441.0,5.66439775]
[1751011634206,1.401,2441.1,2441.0,6.07388775]
[1751011634400,0.692,2441.2,2441.1,0.40947]
[1751011634600,4.30943,2441.4,2441.1,0.40947]
[1751011634802,1.12844,2441.3,2441.1,0.40947]
[1751011635003,2.49154,2441.3,2441.1,0.40947]
[1751011635404,2.0821,2441.3,2440.8,3.2078]
[1751011635605,2.49155,2441.3,2441.0,6.07387775]
[1751011636105,0.40946,2441.2,2441.0,5.66439775]
[1751011636303,1.77256,2441.2,2441.0,5.66439775]
[1751011637100,1.77256,2441.2,2441.0,6.07387775]
[1751011637500,1.77256,2441.2,2441.0,5.66439775]
[1751011638004,1.77257,2441.2,2440.9,0.4095]
[1751011638205,1.77257,2441.2,2441.1,2.95299519]
[1751011638504,1.3631,2441.2,2440.8,2.95299519]
[1751011638702,3.2078,2440.9,2440.5,2.95299519]
[1751011638906,2.58223,2440.8,2440.7,2.95299519]
[1751011639211,3.29083,2440.8,2440.7,2.95299519]
[1751011639407,3.2078,2440.6,2439.9,4.07263156]
[1751011639707,10.83429519,2440.8,2439.7,5.70168419]
[1751011639708,0.40969,2439.8,2439.7,5.70168419]
[1751011639902,0.40971,2439.7,2439.6,4.07263156]
[1751011640105,5.3622,2439.7,2439.4,4.76690419]
[1751011640401,5.3622,2439.7,2439.5,2.95299519]
[1751011640595,3.9164,2439.7,2439.5,2.95299519]
[1751011641000,4.32611,2439.7,2439.5,2.95299519]
[1751011641205,4.32612,2439.7,2439.5,2.95299519]
[1751011641404,3.9164,2439.7,2439.5,2.95299519]
[1751011641607,4.3261,2439.7,2439.5,2.95299519]
[1751011641907,3.9164,2439.7,2439.1,3.8963]
[1751011642102,0.40976,2439.4,2439.2,2.95299519]
[1751011642303,1.403,2439.3,2439.1,3.2078]
[1751011642705,0.40973,2439.6,2439.1,3.6176]
[1751011642906,1.403,2439.5,2439.1,3.6176]
[1751011643107,1.403,2439.5,2439.3,6.08801485]
[1751011643307,1.403,2439.5,2439.3,5.67825485]
[1751011643510,1.403,2439.5,2439.3,6.08801485]
[1751011644009,1.403,2439.5,2439.3,5.67825485]
[1751011644308,4.32612,2439.7,2439.3,5.67825485]
[1751011644509,3.9164,2439.7,2439.3,5.67825485]
[1751011644709,4.32611,2439.7,2439.3,5.67825485]
[1751011645108,0.40974,2439.6,2439.3,5.67825485]
[1751011645308,0.40975,2439.5,2439.3,5.67825485]
[1751011645505,0.40973,2439.6,2439.3,5.67825485]
[1751011646010,3.2078,2439.7,2439.3,6.08802485]
[1751011646199,3.2078,2439.7,2439.6,5.67825485]
[1751011646812,3.61751,2439.7,2439.6,5.67825485]
[1751011647312,3.2078,2439.7,2439.6,5.67825485]
[1751011647510,3.2078,2439.7,2439.5,0.6823]
[1751011647707,0.40974,2439.5,2439.4,5.67825485]
[1751011647911,0.40974,2439.5,2439.2,5.67825485]
[1751011648300,0.40973,2439.6,2439.2,5.67825485]
[1751011648505,3.61751,2439.7,2439.2,6.08803485]
[1751011648704,3.61751,2439.7,2439.5,5.67825485]
[1751011648905,3.2078,2439.7,2439.5,5.67825485]
[1751011649516,3.2078,2439.7,2439.5,6.08798485]
[1751011649808,3.2078,2440.0,2439.5,7.08175485]
[1751011650114,3.2078,2440.0,2439.8,5.67825485]
[1751011650317,3.2078,2440.0,2439.9,0.6601]
[1751011651210,3.2078,2440.0,2439.9,1.06977]
[1751011651708,3.2078,2440.0,2439.9,2.47327]
[1751011652110,3.2078,2440.0,2439.7,0.4097]
[1751011652513,3.2078,2440.0,2439.8,0.40968]
[1751011652815,3.2078,2440.0,2439.9,0.40967]
[1751011653514,3.9359,2440.4,2439.8,5.67825485]
[1751011653815,3.9359,2440.4,2440.3,5.67825485]
[1751011654014,3.9359,2440.4,2440.1,6.08788485]
[1751011654920,3.9359,2440.4,2440.2,0.40961]
[1751011655218,3.9359,2440.4,2440.3,0.40961]
[1751011656215,3.2078,2440.4,2440.3,0.40961]
[1751011658016,1.3949,2440.8,2440.3,0.40961]
[1751011658017,0.7289,2441.0,2440.8,0.40951]
[1751011658218,1.01314613,2440.9,2440.8,0.40952]
[1751011658617,1.01314613,2440.9,2440.8,1.10482]
[1751011659218,3.2078,2441.1,2441.0,0.40949]
[1751011659428,4.22145449,2441.1,2440.9,0.4095]
[1751011659621,1.01365449,2441.0,2440.9,0.4095]
[1751011660820,3.2078,2441.1,2441.0,0.40949]
[1751011661019,4.22203131,2441.1,2440.9,0.40949]
[1751011661220,3.2078,2441.1,2440.9,0.40949]
[1751011662022,3.2078,2441.1,2441.0,0.40949]
[1751011662323,1.01456402,2441.1,2441.0,6.08774485]
[1751011662530,5.341,2441.4,2441.3,0.40944]
[1751011662531,3.9131,2441.4,2441.3,0.40944]
[1751011662724,4.92797703,2441.4,2441.3,0.40944]
[1751011662920,4.92797703,2441.4,2441.3,6.08769485]
[1751011663321,1.01487703,2441.4,2441.3,6.08769485]
[1751011664826,0.7289,2441.5,2441.4,0.40942]
[1751011668231,3.9367,2441.5,2441.4,0.40942]
[1751011668829,3.9367,2441.5,2441.2,5.67825485]
[1751011668830,4.34611,2441.5,2441.3,0.40943]
[1751011669029,5.77471,2441.5,2441.2,0.40945]
[1751011669228,5.77471,2441.5,2441.3,0.40944]
[1751011669539,5.3653,2441.5,2441.3,0.40944]
[1751011669833,5.77471,2441.5,2441.3,0.40944]
[1751011671235,5.77471,2441.5,2441.0,6.37335485]
[1751011671439,0.40943,2441.4,2441.0,6.37335485]
[1751011672135,1.86703,2441.4,2441.1,0.40946]
[1751011672441,0.40944,2441.3,2441.1,0.40946]
[1751011672943,2.54623,2441.4,2441.1,0.40946]
[1751011674733,0.40944,2441.3,2441.0,6.78283485]
[1751011674935,0.40944,2441.3,2441.1,0.40947]
[1751011675333,2.54623,2441.4,2441.1,0.40947]
[1751011675737,0.40944,2441.3,2441.0,6.78283485]
[1751011676238,2.54623,2441.4,2441.1,0.40947]
[1751011676537,0.6792,2441.4,2441.3,6.08769485]
[1751011676732,3.9367,2441.5,2441.4,0.40942]
[1751011677533,0.7289,2441.5,2441.4,0.40942]
[1751011677736,0.40938,2441.7,2441.4,0.40941]
[1751011677937,2.42658,2441.7,2441.4,0.40941]
[1751011678132,0.40939,2441.6,2441.4,0.40941]
[1751011678332,2.42658,2441.7,2441.4,0.40941]
[1751011678534,2.0172,2441.7,2441.6,0.40939]
[1751011678741,0.6696,2441.7,2441.6,6.08764485]
[1751011679340,1.07897,2441.7,2441.6,5.67825485]
[1751011679641,2.42657,2441.7,2441.5,0.4094]
[1751011680239,2.0172,2441.7,2441.5,0.4094]
[1751011680437,2.42657,2441.7,2441.5,0.4094]
[1751011681142,0.6696,2441.7,2441.6,0.40939]
[1751011681546,1.07898,2441.7,2441.5,0.40939]
[1751011682543,0.4094,2441.6,2441.4,6.08767485]
[1751011683145,3.2078,2441.5,2441.2,0.6932]
[1751011683349,0.40947,2441.1,2441.0,3.83]
[1751011683552,3.2078,2441.1,2441.0,4.23949]
[1751011683749,8.2078,2441.1,2440.4,0.6725]
[1751011684045,3.2078,2440.5,2440.4,0.40959]
[1751011684349,3.2078,2440.8,2440.4,5.67825485]
[1751011684550,2.53734,2440.7,2440.5,0.40957]
[1751011684750,2.7901,2440.7,2440.5,0.40957]
[1751011685453,3.19964,2440.7,2440.4,6.08783485]
[1751011685650,0.40956,2440.6,2440.4,6.08783485]
[1751011685955,3.19965,2440.7,2440.4,6.08783485]
[1751011686456,0.40957,2440.6,2440.4,5.67825485]
[1751011686648,0.40957,2440.6,2440.4,6.08784485]
[1751011686850,0.40957,2440.6,2440.4,5.67825485]
[1751011687247,1.80717,2440.6,2440.4,6.08784485]
[1751011687453,1.80717,2440.6,2440.4,5.67825485]
[1751011687752,3.61738,2440.5,2440.3,0.4096]
[1751011687941,3.61738,2440.5,2440.2,6.08786485]
[1751011688144,3.2078,2440.5,2440.3,0.4096]
[1751011688555,3.2078,2440.5,2440.4,0.40959]
[1751011689050,1.77105,2440.7,2440.4,0.40958]
[1751011689248,1.77105,2440.7,2440.5,0.40957]
[1751011689751,3.2078,2440.8,2440.7,0.40954]
[1751011691147,4.34288,2441.1,2440.8,0.40952]
[1751011691448,1.42920709,2441.0,2440.8,5.67825485]
[1751011691650,4.34288,2441.1,2440.8,6.08777485]
[1751011691849,1.42921086,2441.0,2440.8,5.67825485]
[1751011692045,0.40949,2441.0,2440.8,5.67825485]
[1751011692452,0.40951,2440.9,2440.6,6.80449485]
[1751011692756,3.2078,2440.8,2440.7,0.40954]
[1751011697461,3.9334,2441.1,2441.0,0.40949]
[1751011697660,4.95312264,2441.1,2441.0,6.08774485]
[1751011697865,3.9334,2441.1,2441.0,5.67825485]
[1751011698062,4.95313686,2441.1,2441.0,5.67825485]
[1751011698361,4.95313686,2441.1,2441.0,6.08774485]
[1751011699460,4.22753686,2441.1,2441.0,6.08774485]
[1751011699661,3.2078,2441.1,2441.0,6.08774485]
[1751011700163,3.2078,2441.4,2441.0,5.67825485]
[1751011700355,1.01983555,2441.3,2441.2,0.40944]
[1751011701159,3.2078,2441.4,2441.3,0.40944]
[1751011701463,4.22781731,2441.4,2441.3,0.40944]
[1751011702364,4.22781731,2441.4,2441.3,6.08769485]
[1751011707176,3.2078,2441.4,2441.3,6.08769485]
[1751011710072,3.8708,2441.7,2441.5,0.40939]
[1751011710273,1.01749801,2441.6,2441.5,0.40939]
[1751011710475,1.01749801,2441.6,2441.4,3.3610465]
[1751011710675,1.01749801,2441.5,2441.4,3.3610465]
[1751011711279,0.40939,2441.6,2441.4,3.3610465]
[1751011711579,0.40939,2441.6,2441.4,2.9516365]
[1751011711774,0.40941,2441.5,2441.4,2.9516365]
[1751011711970,0.40942,2441.5,2441.2,3.3610865]
[1751011712169,3.2078,2441.4,2441.2,3.3610865]
[1751011712574,3.61722,2441.4,2441.2,3.3610865]
[1751011712976,3.2078,2441.4,2441.3,0.40944]
[1751011714181,3.2078,2441.4,2441.3,3.3610765]
[1751011714682,3.61722,2441.4,2441.3,2.9516365]
[1751011714886,4.98242,2441.4,2441.3,2.9516365]
[1751011715180,4.98242,2441.4,2441.3,3.3610765]
[1751011715481,4.98242,2441.4,2441.3,2.9516365]
[1751011716483,0.40949,2441.0,2440.8,0.40951]
[1751011716792,0.7183,2440.9,2440.8,0.40951]
[1751011717081,3.2078,2441.3,2440.9,0.40951]
[1751011717386,3.2078,2441.3,2441.2,3.3610965]
[1751011717387,3.61724,2441.3,2441.2,3.3610965]
[1751011717578,3.61724,2441.3,2441.2,2.9516365]
[1751011717779,3.2078,2441.3,2441.2,3.3610965]
[1751011718296,3.61724,2441.3,2441.2,3.3610965]
[1751011718784,3.2078,2441.3,2441.2,3.3610965]
[1751011718979,3.2078,2441.3,2441.2,2.9516365]
[1751011719175,4.32954,2441.3,2441.2,2.9516365]
[1751011719374,5.67594,2441.3,2441.2,2.9516365]
[1751011723378,5.67594,2441.3,2441.2,3.3610965]
[1751011723580,4.32954,2441.3,2441.2,2.9516365]
[1751011725276,5.34821041,2441.3,2441.2,2.9516365]
[1751011727787,0.40948,2441.1,2441.0,2.9516365]
[1751011727987,3.9201,2441.3,2440.8,0.40952]
[1751011728189,1.01959356,2441.2,2441.0,0.40948]
[1751011728391,0.7123,2441.3,2441.1,2.9516365]
[1751011728589,1.43547874,2441.2,2441.1,2.9516365]
[1751011729093,2.80857874,2441.2,2441.1,2.9516365]
[1751011729685,1.02601874,2441.2,2441.1,3.3611065]
[1751011730088,1.43547874,2441.2,2441.1,2.9516365]
[1751011730386,3.2078,2441.4,2441.3,0.40944]
[1751011730584,4.23417574,2441.4,2441.3,3.3610765]
[1751011731286,3.2078,2441.4,2441.3,3.3610765]
[1751011731688,2.4239362,2442.3,2441.5,1.02348]
[1751011731882,1.11087,2442.3,2442.2,2.9516365]
[1751011732087,2.13991875,2442.3,2442.2,2.9516365]
[1751011732291,1.02904875,2442.3,2442.2,3.3609265]
[1751011732492,0.6704,2442.7,2442.2,2.9516365]
[1751011732695,0.6704,2442.7,2442.6,2.9516365]
[1751011732904,1.69856185,2442.7,2442.6,2.9516365]
[1751011733197,0.6704,2442.7,2442.6,2.9516365]
[1751011733793,0.7004,2442.8,2442.6,2.9516365]
[1751011733992,0.7004,2442.8,2442.6,3.3608565]
[1751011734187,0.7004,2442.8,2442.7,0.4092]
[1751011734399,0.7004,2442.8,2442.6,6.07072217]
[1751011735207,0.7004,2442.8,2442.6,5.66151217]
[1751011735502,0.4092,2442.7,2442.5,0.68]
[1751011736405,1.3367,2442.7,2442.5,1.08923]
[1751011736602,0.7004,2442.8,2442.6,0.40922]